bitfinex/quotes_ETHUSD_20241122
["timestamp","ask_amount","ask_price","bid_price","bid_amount"]
[1732292293410,0.0379319,3295.7,3294.5,0.95945]
[1732292293615,0.7871,3295.8,3294.5,0.95945]
[1732292293924,0.0379319,3295.7,3294.5,0.95945]
[1732292294266,0.0379319,3295.7,3294.5,0.40945]
[1732292294267,0.7809,3295.6,3294.5,0.40945]
[1732292294554,0.7809,3295.6,3294.4,1.0945]
[1732292295451,0.7522,3295.4,3294.4,1.0945]
[1732292295636,3.82540303,3296.0,3294.4,0.3029]
[1732292295637,0.79013678,3295.3,3294.4,0.3029]
[1732292295855,0.7522,3295.3,3294.4,0.3029]
[1732292296516,0.03793903,3295.2,3294.1,0.795]
[1732292296715,0.8253,3295.1,3294.1,0.795]
[1732292297045,0.03793902,3295.0,3294.1,3.795]
[1732292297346,0.03793902,3295.0,3294.2,0.3795]
[1732292297565,0.8253,3295.1,3294.1,3.0]
[1732292298220,0.8253,3295.1,3294.3,3.0]
[1732292298563,0.8253,3295.1,3294.4,0.3]
[1732292299416,0.8253,3295.1,3294.3,3.0]
[1732292299958,0.8253,3295.1,3294.0,0.8529]
[1732292300449,0.8253,3295.1,3294.3,3.0]
[1732292300618,0.8253,3295.1,3294.0,0.8529]
[1732292301026,0.8253,3295.1,3294.4,0.3029]
[1732292301228,0.8253,3295.1,3294.6,0.3029]
[1732292301853,0.8052,3295.4,3294.6,0.3029]
[1732292302151,0.8052,3295.4,3294.6,3.3029]
[1732292302448,0.8052,3295.4,3294.8,0.3029]
[1732292302661,0.7876,3296.5,3295.0,0.3029]
[1732292302817,0.82552684,3296.4,3295.2,0.3029]
[1732292304451,0.7876,3296.4,3295.2,0.3029]
[1732292305426,0.8168,3296.2,3295.3,0.3029]
[1732292305613,0.85472957,3296.2,3295.3,0.3029]
[1732292306016,0.8168,3296.2,3295.3,0.3029]
[1732292306413,0.8168,3296.2,3295.1,0.3029]
[1732292307051,0.8168,3296.2,3294.0,0.55]
[1732292307052,0.8168,3296.2,3295.5,0.3029]
[1732292307684,0.8168,3296.2,3295.7,3.3029]
[1732292307977,0.8168,3296.2,3295.8,0.33029]
[1732292308437,0.8168,3296.2,3295.7,3.3029]
[1732292309183,0.8168,3296.2,3295.7,0.3029]
[1732292309545,0.8168,3296.2,3295.7,3.3029]
[1732292309754,0.8267,3297.5,3295.7,0.3029]
[1732292309952,0.03792051,3297.4,3296.0,1.1279]
[1732292310166,0.8267,3297.3,3296.0,0.3029]
[1732292310385,0.8267,3297.1,3296.0,0.3029]
[1732292310585,0.8267,3296.9,3296.0,3.3029]
[1732292310771,0.8267,3296.9,3295.7,0.825]
[1732292311094,0.8267,3296.9,3295.7,3.825]
[1732292311315,0.03791799,3296.8,3295.8,0.3825]
[1732292311501,0.8267,3296.9,3295.7,3.825]
[1732292312195,0.8267,3296.9,3295.7,0.825]
[1732292312502,0.8267,3296.9,3295.7,3.825]
[1732292312856,0.8267,3296.9,3295.7,0.825]
[1732292313051,0.03791804,3296.8,3295.8,3.0]
[1732292313301,0.7809,3297.4,3295.8,3.0]
[1732292313458,0.81882135,3297.3,3295.5,3.0]
[1732292313659,0.81882135,3297.3,3295.6,0.38314]
[1732292314203,0.81882135,3297.3,3295.6,3.38314]
[1732292314500,0.81882135,3297.3,3295.6,3.0]
[1732292314656,0.81882135,3297.3,3295.4,0.8314]
[1732292315008,2.79598653,3297.1,3295.4,3.0]
[1732292315244,2.79598653,3297.1,3295.4,3.3]
[1732292315245,0.7809,3296.9,3295.4,3.3]
[1732292315428,0.809,3296.7,3295.4,3.3]
[1732292316444,0.8469246,3296.6,3295.4,0.3]
[1732292316644,0.809,3296.6,3295.4,3.0]
[1732292316849,0.809,3296.6,3295.4,3.4186977]
[1732292317044,0.809,3296.6,3295.4,0.4186977]
[1732292317302,0.809,3296.6,3295.6,3.7698]
[1732292317551,0.809,3296.6,3295.6,0.7698]
[1732292318411,0.809,3296.6,3295.6,3.0]
[1732292318629,0.809,3296.6,3295.3,0.98656701]
[1732292318630,0.809,3296.6,3295.4,0.55]
[1732292318850,0.809,3296.6,3295.6,0.55]
[1732292319133,0.809,3296.6,3295.6,3.55]
[1732292319907,0.809,3296.6,3295.6,0.55]
[1732292320337,0.809,3296.6,3295.6,3.9686977]
[1732292320638,0.809,3296.6,3295.6,0.9686977]
[1732292320856,0.809,3296.6,3295.7,0.3029]
[1732292321222,0.809,3296.6,3295.8,0.55]
[1732292321546,0.809,3296.6,3296.1,0.3029]
[1732292324164,0.809,3296.6,3296.0,0.3029]
[1732292325037,0.809,3296.6,3295.7,0.7729]
[1732292325038,0.809,3296.6,3296.2,0.3029]
[1732292326164,0.809,3296.6,3296.0,0.3029]
[1732292329163,0.809,3296.6,3295.8,0.3029]
[1732292333124,0.809,3296.6,3295.8,0.46548]
[1732292333426,0.809,3296.6,3295.6,0.3029]
[1732292333782,0.809,3296.6,3295.6,0.7215977]
[1732292334517,0.809,3296.6,3296.0,0.3029]
[1732292334682,0.809,3296.6,3295.7,0.55]
[1732292334683,0.809,3296.6,3296.4,0.3029]
[1732292335688,0.809,3296.6,3295.7,0.9686977]
[1732292335689,0.809,3296.6,3295.8,3.3029]
[1732292335891,0.809,3296.6,3296.0,0.3029]
[1732292336114,0.809,3296.6,3295.9,0.42715977]
[1732292336115,0.809,3296.6,3296.2,0.3029]
[1732292336315,0.809,3296.6,3296.4,0.3029]
[1732292337315,0.809,3296.6,3296.1,0.3029]
[1732292337617,0.809,3296.6,3295.7,0.9686977]
[1732292337618,0.809,3296.6,3296.3,0.3029]
[1732292337922,0.03791751,3297.7,3296.5,0.3029]
[1732292338082,0.03791483,3298.0,3296.5,0.3029]
[1732292338432,0.31751348,3298.0,3296.5,0.3029]
[1732292338785,0.31751348,3298.0,3296.6,0.3029]
[1732292339916,0.31751348,3298.0,3296.4,0.3029]
[1732292340120,0.31135,3297.9,3296.4,0.3029]
[1732292340293,0.03791483,3297.8,3296.4,0.3029]
[1732292340825,0.7749,3297.7,3296.4,0.3029]
[1732292341120,0.7749,3297.7,3295.9,0.7734]
[1732292341121,0.7749,3297.5,3296.2,0.3029]
[1732292341280,0.7749,3297.3,3296.2,0.3029]
[1732292341743,0.7749,3297.3,3296.4,0.3029]
[1732292342613,0.7749,3297.3,3296.2,0.3029]
[1732292344650,0.7749,3297.3,3296.0,0.3029]
[1732292344958,0.7749,3297.3,3295.9,0.7734]
[1732292344959,0.7749,3297.3,3296.2,0.3029]
[1732292345750,0.7749,3297.3,3296.1,3.0]
[1732292345751,0.7749,3297.3,3296.4,0.3029]
[1732292346615,0.7749,3297.3,3296.2,0.3029]
[1732292348337,2.83390136,3297.8,3296.2,0.3029]
[1732292348338,0.82271487,3297.2,3296.2,0.3029]
[1732292349461,0.7848,3297.2,3296.2,0.3029]
[1732292350654,0.23144611,3297.2,3296.2,0.3029]
[1732292350853,0.03790894,3298.9,3297.2,0.3029]
[1732292351089,3.82540303,3299.0,3297.4,0.3029]
[1732292351222,0.03790339,3298.9,3297.4,0.3029]
[1732292351418,0.03790339,3298.9,3297.6,0.3029]
[1732292351634,0.38633064,3298.8,3297.6,0.73313251]
[1732292352064,0.38633064,3298.8,3297.6,0.3029]
[1732292352424,0.38633064,3298.8,3297.5,0.3029]
[1732292352658,0.38633064,3298.8,3297.5,3.3029]
[1732292352866,0.03789885,3298.7,3297.5,3.3029]
[1732292353158,0.03789885,3298.7,3297.5,0.3029]
[1732292353368,2.79598653,3298.2,3297.5,0.3029]
[1732292353660,0.55,3298.6,3296.7,0.8225]
[1732292353661,0.7805,3298.0,3296.8,0.3029]
[1732292354274,0.7805,3298.0,3297.0,0.3029]
[1732292354479,0.7805,3298.0,3297.2,0.3029]
[1732292355780,0.805,3298.6,3297.3,1.0735]
[1732292355934,0.03790127,3298.5,3297.3,1.0735]
[1732292356484,0.03789892,3299.6,3297.5,0.3029]
[1732292356703,0.02,3300.4,3297.5,0.3029]
[1732292356704,4.64390303,3299.0,3297.9,0.3029]
[1732292356994,4.64390303,3299.0,3298.1,0.3029]
[1732292357752,4.64390303,3299.0,3298.0,0.8283]
[1732292358092,0.7876,3298.8,3297.9,3.0]
[1732292358293,0.03789876,3298.7,3297.7,1.0827]
[1732292358587,0.7876,3298.8,3297.7,1.0827]
[1732292358788,1.29912921,3298.8,3297.7,1.0827]
[1732292359307,0.7876,3298.8,3297.7,1.0827]
[1732292359648,0.7876,3298.8,3297.7,1.56493703]
[1732292360247,3.82540303,3299.0,3297.8,1.54603703]
[1732292360565,3.82540303,3299.0,3297.8,2.00107046]
[1732292360763,3.82540303,3299.0,3297.9,0.20010705]
[1732292360966,3.82540303,3299.0,3297.9,0.68234408]
[1732292361358,0.7998,3299.1,3297.9,0.68234408]
[1732292361597,0.7998,3299.1,3297.9,1.13737751]
[1732292361971,0.7998,3299.1,3297.9,0.20010705]
[1732292362574,0.7998,3299.1,3298.0,0.47461441]
[1732292362770,0.7998,3299.1,3297.9,0.20010705]
[1732292362771,0.7998,3299.1,3297.9,3.20010705]
[1732292362972,0.823,3298.9,3297.8,0.7609]
[1732292363171,0.823,3298.7,3297.8,0.7609]
[1732292363379,0.823,3298.7,3296.9,0.3029]
[1732292363380,0.03789896,3298.6,3297.5,0.8166]
[1732292363895,0.03789896,3298.6,3296.9,0.3029]
[1732292363896,0.823,3298.5,3297.0,0.8166]
[1732292364104,0.823,3298.3,3297.0,0.8166]
[1732292364289,0.03790336,3298.2,3297.0,0.8166]
[1732292364602,0.55,3298.0,3296.7,0.8166]
[1732292364766,0.55,3298.0,3295.2,0.00917152]
[1732292364767,0.823,3297.8,3296.4,0.8166]
[1732292364966,0.03791194,3297.7,3296.4,0.8166]
[1732292365210,0.03791194,3297.7,3296.4,0.7666]
[1732292365697,0.823,3297.8,3296.4,1.24833703]
[1732292366102,0.823,3297.8,3296.5,3.0]
[1732292366268,0.823,3297.8,3296.6,0.37666]
[1732292366466,0.823,3297.8,3296.4,0.7666]
[1732292366876,0.823,3297.8,3296.5,3.0]
[1732292367406,0.8145,3297.6,3295.7,0.3029]
[1732292367567,0.85241439,3297.5,3295.7,0.3029]
[1732292368071,0.85241439,3297.5,3295.5,0.48173703]
[1732292368072,0.85241439,3297.5,3295.9,0.3029]
[1732292369423,0.85241439,3297.5,3296.1,3.0]
[1732292369584,0.55,3297.4,3296.2,0.3]
[1732292369783,0.8121,3297.2,3296.0,3.0]
[1732292369985,0.8121,3297.2,3295.1,0.48173703]
[1732292369986,0.7681,3297.1,3296.1,0.3]
[1732292370310,0.7681,3297.1,3295.6,0.3029]
[1732292370712,0.58792271,3297.0,3295.5,0.8223]
[1732292370872,0.8238,3296.9,3295.5,0.8223]
[1732292371076,0.8238,3296.7,3295.5,0.8223]
[1732292371305,0.0379227,3296.6,3295.6,3.0]
[1732292371524,0.0379227,3296.6,3295.7,0.38223]
[1732292371680,0.8322,3296.5,3295.6,3.0]
[1732292372013,0.8322,3296.5,3295.1,0.78463703]
[1732292372014,0.8322,3296.3,3295.1,0.8155]
[1732292373215,0.03792798,3296.2,3295.1,0.8155]
[1732292373915,0.7936,3296.1,3294.6,0.7966]
[1732292374110,0.7936,3296.1,3295.0,3.0]
[1732292374312,0.7936,3296.1,3295.1,0.3]
[1732292374819,0.7936,3296.1,3295.0,3.0]
[1732292375123,0.7936,3296.1,3294.6,0.7966]
[1732292375334,0.7936,3296.1,3294.6,1.27329309]
[1732292375516,0.7936,3296.1,3294.8,0.8087]
[1732292375684,0.7936,3296.1,3294.9,0.20054684]
[1732292375880,0.7936,3296.1,3295.0,3.0]
[1732292378020,0.7936,3296.1,3294.9,0.20054684]
[1732292378629,0.7936,3296.1,3295.0,3.0]
[1732292379139,0.7936,3296.1,3294.9,0.20054684]
[1732292379536,0.7936,3296.1,3295.0,3.0]
[1732292379699,0.7936,3296.1,3295.1,0.32005468]
[1732292380139,0.7936,3296.1,3294.9,0.20054684]
[1732292380140,0.7936,3296.1,3295.0,3.0]
[1732292380325,0.7936,3296.1,3294.9,0.20054684]
[1732292380610,0.7936,3296.1,3295.0,0.3029]
[1732292380815,0.7538,3295.9,3295.0,0.3029]
[1732292381027,0.7645,3295.7,3295.0,0.3029]
[1732292381304,0.7645,3295.5,3295.0,0.3029]
[1732292381499,0.03793483,3295.4,3295.0,0.3029]
[1732292381699,0.7645,3295.5,3294.3,0.3029]
[1732292381904,0.7645,3295.5,3294.5,0.3029]
[1732292382914,0.7645,3295.5,3294.3,0.3029]
[1732292383206,0.7645,3295.5,3294.7,0.3029]
[1732292383425,0.7645,3295.5,3294.6,3.0]
[1732292383426,0.7645,3295.5,3294.9,0.3029]
[1732292384337,0.7645,3295.5,3294.7,0.3029]
[1732292385616,0.7521,3295.3,3294.7,0.3029]
[1732292385824,0.7521,3295.1,3294.7,0.3029]
[1732292386415,0.7521,3295.1,3294.0,0.3029]
[1732292387408,0.7521,3295.1,3294.2,0.3029]
[1732292387632,0.7521,3295.1,3294.4,0.3029]
[1732292388146,0.797,3294.9,3294.4,0.3029]
[1732292388651,0.797,3294.9,3293.7,0.3029]
[1732292389007,0.80134311,3294.8,3293.7,0.3029]
[1732292389706,0.80134311,3294.8,3293.7,3.3029]
[1732292389906,0.80134311,3294.8,3293.7,0.3029]
[1732292390106,0.80134311,3294.8,3293.7,3.3029]
[1732292390515,0.80134311,3294.8,3293.7,0.3029]
[1732292390722,0.7634,3294.8,3294.3,3.0]
[1732292390926,0.832,3296.0,3294.4,0.3]
[1732292391208,0.86993564,3295.9,3294.4,0.3]
[1732292391407,0.86993564,3295.9,3294.1,1.0931]
[1732292391408,0.86993564,3295.9,3294.3,3.0]
[1732292391644,0.86993564,3295.9,3294.1,1.0931]
[1732292392521,0.55,3295.8,3294.4,0.3029]
[1732292392736,0.8057,3295.7,3294.5,0.63319]
[1732292393045,0.8057,3295.7,3294.5,0.3029]
[1732292393205,0.8057,3295.7,3294.5,3.3029]
[1732292393405,0.8057,3295.7,3294.5,0.3029]
[1732292393834,0.8057,3295.7,3294.2,0.3029]
[1732292394031,0.8057,3295.7,3294.6,0.3029]
[1732292394234,0.8057,3295.7,3294.7,0.33029]
[1732292394408,0.764,3295.5,3294.7,0.33029]
[1732292394610,3.01,3296.8,3294.6,0.3029]
[1732292394611,0.764,3295.3,3294.6,0.3029]
[1732292394834,0.764,3295.1,3294.1,0.3025]
[1732292395035,0.764,3295.1,3294.3,3.0]
[1732292395250,0.764,3295.1,3294.3,3.3025]
[1732292395440,0.764,3295.1,3294.3,0.3025]
[1732292395644,0.764,3295.1,3293.7,0.785]
[1732292395818,0.84644041,3295.0,3293.9,0.3025]
[1732292396029,0.84644041,3295.0,3293.9,3.3025]
[1732292396030,0.8085,3295.0,3293.9,3.3025]
[1732292396230,0.8085,3295.0,3294.1,0.3025]
[1732292397659,0.8085,3295.0,3294.2,3.0]
[1732292397817,0.8085,3295.0,3294.4,3.0]
[1732292398149,0.8085,3295.0,3294.4,0.3025]
[1732292398310,0.8085,3295.0,3294.4,3.3025]
[1732292398511,0.8085,3295.0,3294.5,0.33025]
[1732292398748,0.8085,3295.0,3294.4,0.3025]
[1732292398946,0.8085,3295.0,3294.0,1.1345]
[1732292399153,0.8085,3295.0,3294.4,3.0]
[1732292399352,0.8085,3295.0,3294.1,0.7707831]
[1732292399647,0.03793594,3296.5,3294.3,0.3025]
[1732292399648,0.7807,3296.3,3294.3,0.3025]
[1732292399848,0.8295,3296.0,3294.6,0.7638]
[1732292400150,0.8295,3296.0,3294.6,1.0663]
[1732292400652,0.8295,3296.0,3294.6,1.5345831]
[1732292400854,0.8295,3296.0,3294.6,1.0663]
[1732292402054,0.79423134,3295.9,3294.6,1.0663]
[1732292402216,0.79423134,3295.9,3294.8,0.3025]
[1732292402416,0.7563,3295.9,3294.8,0.3025]
[1732292403161,0.7563,3295.9,3295.1,3.3025]
[1732292403453,0.7563,3295.9,3295.3,0.3025]
[1732292404363,0.7563,3295.9,3295.2,0.3025]
[1732292405211,0.7563,3295.9,3294.6,0.3025]
[1732292405428,0.7563,3295.9,3295.0,0.3025]
[1732292405647,0.7563,3295.9,3295.2,0.3025]
[1732292406353,0.79423104,3295.9,3295.2,0.3025]
[1732292406534,0.79423104,3295.9,3295.0,0.3025]
[1732292407639,0.753,3295.7,3294.4,0.3025]
[1732292407836,0.7529,3295.5,3294.4,0.3025]
[1732292408045,0.7529,3295.3,3294.4,0.3025]
[1732292408758,0.7529,3295.3,3294.1,0.3025]
[1732292409226,0.80623761,3295.2,3294.1,0.3025]
[1732292409431,0.7683,3295.0,3294.1,0.3025]
[1732292409640,0.80624546,3294.9,3293.4,0.3025]
[1732292410756,0.55,3294.6,3293.1,0.798]
[1732292410971,0.8028,3294.5,3293.1,0.798]
[1732292411134,0.8028,3294.5,3293.2,0.3025]
[1732292412370,0.8028,3294.5,3293.2,0.7707831]
[1732292412550,0.8028,3294.5,3293.3,0.62516141]
[1732292413058,0.8028,3294.5,3293.3,0.92766141]
[1732292413219,0.8028,3294.5,3293.4,0.798]
[1732292414031,0.8028,3294.5,3293.4,1.2662831]
[1732292414660,0.8028,3294.5,3293.5,0.55]
[1732292414866,0.7958,3295.7,3293.9,3.0]
[1732292415163,0.83373867,3295.6,3293.7,1.0931]
[1732292415720,0.83373867,3295.6,3293.7,0.3025]
[1732292416062,0.83373867,3295.6,3294.0,3.0]
[1732292416361,0.83373867,3295.6,3294.1,0.3]
[1732292416523,0.83373867,3295.6,3294.0,3.0]
[1732292416944,0.83373867,3295.6,3293.5,0.55]
[1732292416945,0.7958,3295.6,3294.1,0.4682831]
[1732292417353,0.7958,3295.6,3294.0,0.8068]
[1732292417554,0.46196341,3295.8,3293.6,1.2750831]
[1732292417555,0.7591,3295.4,3293.6,1.2750831]
[1732292417828,0.8066,3295.3,3294.0,3.0]
[1732292418142,0.8066,3295.3,3293.7,0.15775831]
[1732292418846,0.8066,3295.3,3294.1,3.0]
[1732292419050,0.8066,3295.3,3294.2,1.5734831]
[1732292419258,0.8066,3295.3,3294.2,0.8052]
[1732292419463,0.8066,3295.3,3294.5,3.0]
[1732292419762,0.8066,3295.3,3294.2,0.8052]
[1732292419966,0.8066,3295.1,3294.5,3.0]
[1732292420326,0.8066,3295.1,3294.6,0.3]
[1732292420683,0.8066,3295.1,3294.7,0.3025]
[1732292421767,0.8066,3295.1,3294.5,3.0]
[1732292421768,0.8066,3295.1,3294.6,0.3025]
[1732292422630,0.80659983,3295.1,3294.4,0.3025]
[1732292422835,0.03793917,3295.0,3294.5,0.3025]
[1732292423053,0.55,3295.8,3294.5,0.3025]
[1732292423259,0.55,3295.6,3294.5,0.3025]
[1732292423435,0.55,3295.4,3294.5,0.3025]
[1732292423650,0.03794078,3295.3,3294.5,0.3025]
[1732292423875,0.55,3295.2,3294.2,0.3025]
[1732292424073,0.03794334,3295.1,3294.2,0.3025]
[1732292424282,0.55,3295.4,3294.2,0.3025]
[1732292424484,0.55,3295.2,3294.2,0.3025]
[1732292424790,0.03794342,3295.1,3293.4,0.3025]
[1732292424948,0.55,3295.2,3293.4,0.7707831]
[1732292425142,0.55,3295.2,3293.3,0.7847]
[1732292425143,0.55,3295.2,3294.0,0.3025]
[1732292425570,0.7765,3295.1,3294.0,0.3025]
[1732292425774,0.03794342,3295.0,3294.0,0.3025]
[1732292425978,0.7765,3294.9,3294.0,0.3025]
[1732292426183,0.7765,3294.7,3293.1,0.3025]
[1732292426363,0.58794623,3294.8,3293.1,0.3025]
[1732292426364,0.81444779,3294.6,3293.1,0.3025]
[1732292426898,0.7765,3294.6,3293.1,0.7707831]
[1732292427194,0.7765,3294.6,3293.3,0.3025]
[1732292427358,0.03794917,3294.5,3293.3,0.3025]
[1732292427555,0.7975,3294.4,3293.3,0.3025]
[1732292427799,0.83544919,3294.3,3293.3,0.3025]
[1732292427983,0.7975,3294.3,3293.5,0.3025]
[1732292428191,0.7975,3294.3,3293.7,0.3025]
[1732292429170,0.7975,3294.3,3293.8,0.3025]
[1732292430192,0.7975,3294.3,3293.5,0.3025]
[1732292430402,0.7975,3294.3,3293.7,0.3025]
[1732292430802,0.01,3295.5,3293.7,0.3025]
[1732292430803,0.8438467,3294.2,3293.7,0.3025]
[1732292430958,0.8059,3294.2,3293.7,0.3025]
[1732292431300,0.8011,3294.0,3292.7,0.3025]
[1732292431459,2.79598653,3295.1,3292.7,0.3025]
[1732292431460,0.8011,3293.8,3292.7,0.3025]
[1732292432557,0.8011,3293.8,3292.9,0.3025]
[1732292432972,0.8011,3293.8,3292.9,0.73786644]
[1732292433170,0.8011,3293.8,3292.9,0.3025]
[1732292433395,0.8011,3293.8,3292.9,0.73786644]
[1732292433595,0.8011,3293.8,3293.0,0.3025]
[1732292434259,0.8011,3293.8,3293.2,0.3025]
[1732292434458,3.037949,3295.6,3293.5,0.3025]
[1732292434459,0.55,3295.1,3293.5,0.3025]
[1732292434672,0.7858,3294.9,3293.5,0.3025]
[1732292435004,0.78579999,3294.9,3293.5,0.3025]
[1732292435377,0.78579999,3294.9,3293.1,0.8167]
[1732292435378,0.78579999,3294.9,3293.8,0.3025]
[1732292435803,0.78579999,3294.9,3294.0,0.3025]
[1732292436403,0.03794322,3295.6,3294.0,0.3025]
[1732292436591,0.55,3295.5,3294.0,0.3025]
[1732292436794,0.55,3295.3,3293.8,0.3025]
[1732292437121,0.03794321,3295.2,3293.8,0.3025]
[1732292437678,0.55,3295.1,3293.8,0.3025]
[1732292437903,0.55,3294.9,3293.8,0.3025]
[1732292438099,0.8016,3294.6,3293.8,0.3025]
[1732292438288,0.8016,3294.4,3293.8,0.3025]
[1732292438590,0.7848,3294.2,3293.8,0.3025]
[1732292438921,0.7848,3294.0,3292.9,0.3025]
[1732292439502,0.7848,3294.0,3292.9,0.73786644]
[1732292439811,0.7848,3294.0,3293.1,0.3025]
[1732292440017,0.7848,3294.0,3292.8,0.7607]
[1732292440018,0.7848,3294.0,3293.3,0.3025]
[1732292440224,0.7848,3294.0,3293.5,3.3025]
[1732292440992,0.7848,3294.0,3293.8,0.3025]
[1732292441815,0.78440082,3294.0,3293.8,0.3025]
[1732292442117,0.78440082,3294.0,3293.0,0.73786644]
[1732292442848,0.78440082,3294.0,3293.1,0.8137]
[1732292442982,0.03794734,3295.1,3293.2,0.93127081]
[1732292443182,0.55,3295.6,3293.9,0.3025]
[1732292443492,2.79598653,3295.8,3293.9,0.3025]
[1732292443493,0.55,3295.4,3293.9,0.3025]
[1732292443695,0.55,3295.2,3293.9,0.3025]
[1732292443885,0.03794319,3295.1,3293.9,0.3025]
[1732292444283,0.55,3295.0,3294.0,0.3025]
[1732292444585,0.55,3294.8,3294.0,0.3025]
[1732292444900,0.8133,3294.7,3294.0,0.3025]
[1732292445304,0.8133,3294.7,3293.7,3.0]
[1732292445305,0.8133,3294.7,3293.8,0.3025]
[1732292446083,0.8137,3294.5,3293.8,0.3025]
[1732292446399,0.0379476,3294.4,3293.9,0.3025]
[1732292446611,0.8137,3294.4,3293.9,0.3025]
[1732292447130,0.81674869,3294.3,3293.9,0.3025]
[1732292447339,0.81674869,3294.3,3292.9,0.3025]
[1732292448442,0.81674869,3294.3,3292.7,0.3025]
[1732292449327,0.7788,3294.3,3292.7,0.73786644]
[1732292449637,0.7788,3294.3,3292.9,0.3025]
[1732292450140,0.8154,3294.1,3293.1,0.3025]
[1732292450309,0.85335366,3294.0,3293.1,0.3025]
[1732292451016,0.85335366,3294.0,3293.2,0.3025]
[1732292451608,0.8154,3293.8,3292.8,0.3025]
[1732292451908,0.8154,3293.6,3292.8,0.3025]
[1732292452100,0.8154,3293.6,3292.4,0.3025]
[1732292452297,0.8154,3293.6,3292.4,0.50276772]
[1732292454741,0.8154,3293.6,3292.4,0.93813416]
[1732292455943,0.8154,3293.6,3292.4,0.50276772]
[1732292456665,0.8021,3293.4,3292.6,0.3025]
[1732292456804,0.82996316,3293.3,3291.9,1.1216]
[1732292457333,0.792,3293.1,3291.9,0.3025]
[1732292457536,0.792,3293.1,3291.8,0.3025]
[1732292457703,0.792,3293.1,3292.0,0.3025]
[1732292458851,0.792,3293.1,3291.7,1.9518]
[1732292458852,0.83296638,3293.0,3291.8,0.3025]
[1732292459814,0.83296638,3293.0,3291.5,0.3025]
[1732292460542,0.83296638,3293.0,3291.4,1.1216]
[1732292460543,0.83296638,3293.0,3291.7,0.3025]
[1732292460732,0.7848,3292.8,3291.7,0.3025]
[1732292461038,0.82276915,3292.8,3291.7,0.3025]
[1732292461408,0.55,3292.5,3290.8,0.7866]
[1732292461623,0.7848,3292.3,3290.7,1.1216]
[1732292461967,0.8219,3292.1,3290.8,0.7866]
[1732292462159,0.03797561,3292.0,3290.8,0.7866]
[1732292462377,0.8219,3292.0,3290.9,0.3025]
[1732292462656,0.55,3292.7,3290.9,0.3025]
[1732292462657,0.7675,3291.8,3290.9,0.3025]
[1732292463224,0.7675,3293.2,3290.9,0.65147776]
[1732292463425,0.7675,3292.9,3291.1,0.3025]
[1732292464036,0.55,3293.2,3291.0,1.14507776]
[1732292464037,0.8051,3292.7,3291.6,3.3025]
[1732292464374,0.8051,3292.7,3291.7,0.63275]
[1732292464529,0.8051,3292.7,3291.7,0.3025]
[1732292465123,0.8051,3292.7,3291.8,0.3025]
[1732292465536,0.8051,3292.7,3291.0,0.7961]
[1732292465537,0.82866871,3292.6,3291.4,0.3025]
[1732292465735,0.8078,3292.4,3291.4,0.3025]
[1732292465940,0.8078,3292.2,3291.4,0.3025]
[1732292466140,0.8078,3292.0,3291.4,0.63275]
[1732292466368,0.8078,3291.8,3291.4,0.3025]
[1732292467531,0.8078,3291.8,3291.4,0.63275]
[1732292467746,0.8078,3291.8,3291.4,0.3025]
[1732292467948,0.8078,3291.8,3289.5,0.01917152]
[1732292467949,0.7518,3291.6,3290.5,0.3025]
[1732292469173,0.7518,3291.6,3290.4,0.7837]
[1732292469174,0.7518,3291.6,3290.8,0.3025]
[1732292469475,0.7518,3291.6,3291.0,0.3025]
[1732292470179,0.8268,3291.4,3291.0,0.3025]
[1732292470468,0.8268,3291.4,3290.1,0.7529]
[1732292470469,0.8268,3291.4,3290.2,0.3025]
[1732292471634,0.8268,3291.4,3290.7,0.3025]
[1732292471837,0.8268,3291.4,3290.8,0.63275]
[1732292472176,0.8268,3291.4,3290.8,0.3025]
[1732292472915,0.8268,3291.4,3290.2,0.3025]
[1732292473040,0.8268,3291.4,3290.4,0.3025]
[1732292473245,0.8052,3292.4,3290.8,3.3025]
[1732292473477,0.8052,3292.2,3291.0,0.3025]
[1732292473783,0.8052,3292.2,3291.1,0.63275]
[1732292474758,0.8052,3292.2,3291.2,0.3025]
[1732292474945,0.8052,3292.2,3291.6,0.3025]
[1732292475142,0.8252,3294.0,3291.8,0.3025]
[1732292475342,0.79806362,3293.9,3292.0,0.3025]
[1732292475576,0.79806362,3293.9,3292.2,0.3025]
[1732292476264,0.7601,3293.9,3292.2,0.3025]
[1732292476463,0.03795994,3293.8,3292.3,3.3025]
[1732292476686,0.01,3294.7,3292.5,0.3025]
[1732292476687,0.8125,3293.7,3292.5,0.3025]
[1732292477051,0.8125,3293.7,3292.5,3.3025]
[1732292477555,0.8125,3293.7,3292.5,0.3025]
[1732292478084,0.8125,3293.7,3292.7,0.3025]
[1732292478394,0.8125,3293.7,3292.8,0.33025]
[1732292478552,0.8125,3293.7,3292.7,0.3025]
[1732292479395,0.8125,3293.7,3293.0,3.0]
[1732292479708,0.0379519,3295.4,3293.0,3.0]
[1732292479709,0.8258,3295.3,3293.5,3.3025]
[1732292479993,0.8258,3295.3,3293.7,0.3025]
[1732292480184,0.8258,3295.3,3293.2,0.7831]
[1732292480185,0.8258,3295.3,3294.0,1.1123]
[1732292480592,0.8258,3295.3,3294.7,0.3025]
[1732292480763,0.8258,3295.3,3294.1,0.55]
[1732292481271,0.7724,3295.6,3294.9,3.0]
[1732292481590,0.7724,3295.6,3294.1,0.55]